Cogmind - Beta 16 @@@ ROGUE MODE // 2025.10.23 @ 15:55:40 Player: ChromeKnight Result: Destroyed by Y-72 Warden with Railgun Performance ------------- Evolutions (8) 4000 Regions Visited (16) 3200 Robots Destroyed (142) 710 Value Destroyed (6148) 6148 Prototype IDs (28) 560 Alien Tech Used (0) 0 Bonus (6175) 6175 TOTAL SCORE: 20793 Bonus ------- High Alert Combat Kills 48 Follower Combat Kills 1606 Network Hubs Disabled 400 Registered with UFD 300 Met Optimus in HQ 500 Met Zhirov 300 Built Enhanced Grunts 300 Met R17 at Cetus 500 Read Decrypted Archives 300 Met R17 at Research 2000 Friendly Fire -79 Cogmind --------- Core Integrity 0/1450 Matter 130/300 Energy 98/100 System Corruption 11% Temperature Cool (0) Movement Core (50) Location -2/Research Parts ------- > --- POWER (2) -------- (None) > --- PROPULSION (4) --- (None) > --- UTILITY (14) ----- (None) > --- WEAPON (3) ------- (None) > --- INVENTORY (5) ---- Quantum Reactor Advanced Myomer Leg Improved Potential Cannon Peak State ------------ > --- POWER ------------ Light Antimatter Reactor Quantum Reactor > --- PROPULSION ------- Centrium Heavy Treads Centrium Heavy Treads > --- UTILITY ---------- Advanced Heat Sink Advanced Heat Sink Large Storage Unit Advanced Signal Interpreter Advanced Targeting Computer Centrium Medium Armor Plating Centrium Medium Armor Plating Centrium Medium Armor Plating Hacking Suite Hacking Suite Advanced System Shield Improved Dynamic Insulation System > --- WEAPON ----------- Phase Gun Advanced Variable Charge Gun Advanced KE Penetrator > --- INVENTORY -------- Micro Fission Core Centrium Heavy Treads Centrium Heavy Treads Long-range Terrain Scanner Heavy Armor Plating Improved Point Defense System Variable Charge Gun Advanced Variable Charge Gun Advanced Variable Charge Gun Nova Cannon Enhanced Hardcell Cannon Enhanced Hardcell Cannon [Rating: 150] Favorites ----------- Power Light Nuclear Core Engine Light Angular Momentum Engine Power Core Light Nuclear Core Reactor Quantum Reactor Propulsion Medium Treads Treads Medium Treads Leg Aluminum Leg Hover Unit Gravmag Array Flight Unit Xenon Bombardment Thruster Utility Hacking Suite Device Advanced Heat Sink Storage Large Storage Unit Processor Advanced Targeting Computer Hackware Hacking Suite Protection Reactive Plating Weapon Flak Cannon Energy Gun Advanced Variable Charge Gun Energy Cannon Light EM Pulse Cannon Ballistic Gun High-powered Shotgun Ballistic Cannon Flak Cannon Launcher Grenade Launcher Impact Weapon Shock Maul Slashing Weapon Dual-blade Saw Piercing Weapon Heavy Pick Build | -11 -10 -10 -10 -9 -6 -6 -6 -5 -5 -5 -5 -5 -4 -3 -3 -2 ------- Run | Yrd Mat Min Sub Scr Fac Was Fac Fac Ext Cet Arc Hub Fac Res Tes Res Slots Evolved 16 | . . . . . 8 . . 2 . . . . 2 2 . 2 Power 1 | . . . . . 1 . . . . . . . . . . . Propulsion 2 | . . . . . 2 . . . . . . . . . . . Utility 12 | . . . . . 5 . . 1 . . . . 2 2 . 2 Weapon 1 | . . . . . . . . 1 . . . . . . . . Parts Attached 193 | 7 11 . 2 8 21 . 27 16 10 11 . 9 10 42 6 13 Power 27 | 1 2 . . . 5 . 1 5 . 2 . 1 2 8 . . Engine 11 | 1 1 . . . 4 . 1 4 . . . . . . . . Core 8 | . 1 . . . 1 . . 1 . . . . 2 3 . . Reactor 8 | . . . . . . . . . . 2 . 1 . 5 . . Propulsion 36 | 2 2 . . 4 4 . 8 2 . 3 . . . 6 1 4 Treads 12 | 2 . . . . . . 4 2 . 3 . . . 1 . . Leg 10 | . 2 . . 4 3 . . . . . . . . . . 1 Wheel . | . . . . . . . . . . . . . . . . . Hover 5 | . . . . . 1 . 4 . . . . . . . . . Flight 9 | . . . . . . . . . . . . . . 5 1 3 Utility 82 | 1 2 . . 2 10 . 14 4 10 1 . 6 8 16 2 6 Device 37 | . 1 . . 1 5 . 4 3 5 . . 2 4 7 2 3 Storage 6 | 1 1 . . . . . 1 . 1 . . . 1 . . 1 Processor 10 | . . . . . 2 . 3 . 1 . . . 1 2 . 1 Hackware 11 | . . . . . 2 . 1 1 1 . . . 2 3 . 1 Protection 18 | . . . . 1 1 . 5 . 2 1 . 4 . 4 . . Artifact . | . . . . . . . . . . . . . . . . . Weapon 48 | 3 5 . 2 2 2 . 4 5 . 5 . 2 . 12 3 3 Energy Gun 19 | 2 2 . . . 1 . . 1 . 3 . 1 . 7 1 1 Energy Cannon 6 | . 2 . 1 . . . . . . . . . . 1 2 . Ballistic Gun 8 | 1 1 . . 1 . . . . . 2 . 1 . 2 . . Ballistic Cannon 9 | . . . . 1 . . 2 4 . . . . . 1 . 1 Launcher 2 | . . . 1 . . . . . . . . . . 1 . . Special Weapon . | . . . . . . . . . . . . . . . . . Impact Weapon 2 | . . . . . 1 . 1 . . . . . . . . . Slashing Weapon 1 | . . . . . . . . . . . . . . . . 1 Piercing Weapon 1 | . . . . . . . 1 . . . . . . . . . Special Melee Weapon . | . . . . . . . . . . . . . . . . . Unidentified Prototypes 19 | . . . . . 2 . 2 1 . 4 . 1 . 3 4 2 Corrupted Parts 10 | . . . . . . . . . 1 8 . . . . . 1 System Corruption 41 | . . . . . . . . . 1 32 . . . . . 8 Parts Lost 87 | . 6 . 1 . 7 3 4 8 1 2 1 11 2 26 . 15 Power 18 | . 2 . . . 3 1 . 2 1 1 . 2 . 4 . 2 Propulsion 19 | . 2 . . . 2 . 3 2 . 1 . . . 5 . 4 Utility 35 | . . . . . 1 1 1 4 . . . 6 2 12 . 8 Weapon 15 | . 2 . 1 . 1 1 . . . . 1 3 . 5 . 1 Highest Loss Streak 11 | . 5 . 1 . 2 2 2 5 1 2 1 8 1 9 . 11 To Critical Strikes 2 | . . . . . . . . 1 . . . . . 1 . . Average Backups 9 | . 8 12 12 10 11 11 3 6 8 13 12 8 11 9 4 7 Power . | . . . . . . . . . . . 1 . . . . . Propulsion 1 | . 1 2 2 1 3 3 . 1 . 1 2 2 2 1 2 4 Utility 4 | . 4 7 8 7 6 6 2 . 4 5 4 2 4 2 . 1 Weapon 2 | . 2 3 2 2 1 1 . 3 3 5 5 3 4 5 1 1 Tool/Special . | . . . . . . . . . . . . . . . . . Unused Backups 44 | . 1 . . 3 8 7 4 . . 8 . 1 1 5 2 4 Power 2 | . . . . . . . . . . . . . . 1 . 1 Propulsion 11 | . . . . . 2 2 . . . 2 . . . 1 1 3 Utility 18 | . 1 . . 3 1 5 3 . . 3 . . 1 1 . . Weapon 13 | . . . . . 5 . 1 . . 3 . 1 . 2 1 . Tool/Special . | . . . . . . . . . . . . . . . . . Average Slot Usage (%) 85 | . 90 100 99 98 80 64 50 90 97 92 88 78 84 73 81 72 Engine 2 | . 5 . . . 6 8 1 5 7 1 . . . . . 5 Core 5 | . 7 14 14 14 3 . . 1 1 . . . 2 2 4 . Reactor 1 | . . . . . . . . . . 8 11 6 5 4 . . Treads 7 | . 11 . . . . . 6 22 23 15 11 11 9 8 . . Leg 10 | . 15 28 28 27 17 14 . . . . . . . . . . Device 8 | . 7 14 14 1 8 10 3 4 11 11 11 8 16 10 8 6 Storage 7 | . 14 14 14 14 6 4 . 5 5 5 5 5 5 3 . 3 Processor 4 | . . . . . 3 . 11 9 5 5 5 5 6 7 14 12 Hackware 7 | . . . . . 9 11 5 5 15 17 17 8 6 14 28 26 Protection 7 | . . . . 12 9 5 6 14 4 5 5 13 14 4 3 2 Energy Gun 5 | . 22 28 7 . 3 . . . 5 4 5 5 5 8 6 2 Ballistic Gun 3 | . . . . 12 2 . . . . . . 7 10 2 . . Ballistic Cannon 5 | . . . . 12 5 3 3 11 11 11 11 . . . . . Peak Build Rating 150 | 6 10 10 11 25 60 60 53 73 80 122 122 123 130 150 124 117 Average Rating 59 | 4 8 10 10 20 48 44 37 61 75 103 121 109 123 115 102 98 On Entrance 58 | . 6 10 10 10 25 60 3 51 73 77 122 116 111 124 91 112 Avg Prop Armor Cover (%) 12 | . . . . . . . 13 9 . 9 . . . . . . Naked Turns 31 | . . . . . . 20 . . . . . . . . . 11 Heaviest Build 98 | 11 33 28 33 44 66 58 36 58 69 98 97 94 93 95 29 32 Greatest Support 160 | 40 40 20 20 35 52 52 112 114 114 160 160 160 160 160 32 32 Greatest Overweight (x) 6 | . 6 1 1 2 2 2 3 . . 1 . . . 1 . . Average Overweight (x) . | . . 1 1 1 1 . . . . . . . . . . . Largest Inventory Capacity 15 | 8 15 15 15 15 15 15 10 10 15 15 15 15 15 15 5 10 Average Capacity 13 | 6 14 15 15 15 15 12 5 10 13 15 15 15 15 13 5 8 Most Carried 15 | 1 12 13 13 15 15 15 8 10 15 15 15 14 15 15 5 10 Average Carried 10 | . 8 12 12 12 13 12 4 7 9 14 15 11 13 10 4 8 Final Capacity 15 | 8 15 15 15 15 15 5 10 10 15 15 15 15 15 5 5 5 Final Carried 15 | 1 12 13 12 15 15 5 8 6 14 15 15 10 15 5 5 4 Scrap Suit Usage (%) 7 | . . . . . 47 . . . . . . . . . . . Parts Cannibalized 5 | . . . . . 5 . . . . . . . . . . . Class Distribution -------------------- 37% | Mutant 23% | Scavenger-Mutant 16% | Scavenger-Tank 10% | Hacker-Gunner 5% | Hacker-Tank Dominant Class ---------------- Scavenger-Mutant | -10/Materials Scavenger-Mutant | -10/Mines Scavenger-Mutant | -10/Subcaves Mutant | -9/Scraptown Scavenger-Mutant | -6/Factory Hacker-Mutant | -6/Waste Mutant | -6/Factory Mutant | -5/Factory Hacker-Gunner | -5/Extension Hacker-Tank | -5/Cetus Scavenger-Tank | -5/Archives Scavenger-Tank | -5/Hub_04(d) Scavenger-Tank | -4/Factory Scavenger-Tank | -3/Research Wizard-Mutant | -3/Testing Wizard-Scout | -2/Research Resources | -11 -10 -10 -10 -9 -6 -6 -6 -5 -5 -5 -5 -5 -4 -3 -3 -2 ----------- Run | Yrd Mat Min Sub Scr Fac Was Fac Fac Ext Cet Arc Hub Fac Res Tes Res Matter Collected 4815 | 144 303 . 60 70 1006 . 277 501 584 246 . 282 498 773 . 71 Remotely . | . . . . . . . . . . . . . . . . . Salvage Created 6168 | . 519 22 29 . 1211 . 403 555 370 58 . 282 1078 1561 . 80 Parts 270 | . 23 5 2 . 53 . 14 26 13 4 . 15 51 57 . 7 Haulers Intercepted 6 | . . . . . 3 . 1 1 . . . . . 1 . . Recyclers Shooed 5 | . . . . . 1 . . 1 1 . . . 1 1 . . Parts Field Recycled . | . . . . . . . . . . . . . . . . . Retrieved Matter . | . . . . . . . . . . . . . . . . . Parts Self-Destructed 20 | . . . 20 . . . . . . . . . . . . . Prevented . | . . . . . . . . . . . . . . . . . Parts Restored . | . . . . . . . . . . . . . . . . . Kills | -11 -10 -10 -10 -9 -6 -6 -6 -5 -5 -5 -5 -5 -4 -3 -3 -2 ------- Run | Yrd Mat Min Sub Scr Fac Was Fac Fac Ext Cet Arc Hub Fac Res Tes Res Combat Hostiles Destroyed 100 | . 10 . 2 . 23 . 10 7 3 1 . 5 18 19 . 2 Melee 10 | . . . . . 1 . 5 3 . . . . . . . 1 Guns 49 | . 6 . . . 9 . . . . . . 4 17 12 . 1 Cannons 29 | . 2 . . . 13 . 1 4 1 1 . 1 . 6 . . AOE 3 | . 1 . 2 . . . . . . . . . . . . . Classes Destroyed 17 | . 5 1 1 . 4 . . 3 . . . 1 1 . . 1 Worker 10 | . 1 . . . 3 . . 2 . . . . 1 3 . . Builder 1 | . . . . . . . . . . . . . 1 . . . Tunneler 2 | . . 1 . . . . . 1 . . . . . . . . Hauler 6 | . . . . . 3 . 1 1 . . . . . 1 . . Recycler 5 | . . . . . 2 . . 1 1 . . . . 1 . . Operator 6 | . 3 . . . 1 . . . 1 . . . . 1 . . Turret 2 | . . . 2 . . . . . . . . . . . . . Watcher 10 | . 2 . . . 2 . 1 1 2 . . . 2 . . . Swarmer 24 | . 3 . 2 . 7 . 6 . . . . . 4 2 . . Cutter 2 | . . . . . . . . . . . . . . . . 2 Grunt 38 | . 7 . . . 8 . . 1 3 . . 3 4 12 . . Brawler 2 | . . . . . . . . 1 . . . . . 1 . . Duelist 1 | . . . . . . . . 1 . . . . . . . . Sentry 6 | . . . . . 4 . 1 1 . . . . . . . . Hunter 6 | . . . . . . . . 1 . . . 1 2 2 . . Programmer 18 | . . . . . 4 . 3 2 . . . . 8 1 . . Behemoth 2 | . . . . . . . . . . . . 1 . 1 . . Cetus Guard 1 | . . . . . . . . . . 1 . . . . . . Best Kill Streak 7 | . 5 1 4 . 5 . 4 2 5 1 . 3 7 7 . 1 Combat Bots Only 5 | . 3 . 2 . 4 . 4 2 2 1 . 3 4 5 . 1 Max Kills in Single Turn 2 | . 2 1 2 . 1 . 1 1 1 1 . 1 2 2 . 1 Gunslinging 1 | . . . . . . . . . . . . . . 1 . . Exploded 2 | . 1 . 2 . . . . . . . . . . . . . Melee 1 | . . . . . 1 . 1 1 . . . . . . . 1 Uniques/NPCs Destroyed . | . . . . . . . . . . . . . . . . . Combat | -11 -10 -10 -10 -9 -6 -6 -6 -5 -5 -5 -5 -5 -4 -3 -3 -2 -------- Run | Yrd Mat Min Sub Scr Fac Was Fac Fac Ext Cet Arc Hub Fac Res Tes Res Hostile Shots Fired 1378 | . 76 . 35 . 256 10 92 94 13 12 . 173 84 380 4 149 Missed 404 | . 9 . 18 . 92 3 43 16 4 4 . 41 24 71 2 77 Hits 974 | . 67 . 17 . 164 7 49 78 9 8 . 132 60 309 2 72 Melee 70 | . . . . . . 7 . 7 . . . . . 22 . 34 Projectile 904 | . 67 . 17 . 164 . 49 71 9 8 . 132 60 287 2 38 AOE 5 | . . . . . . . 1 . . . . 1 . . . 3 Critical Strikes 62 | . 1 . 1 . 4 2 . 6 . 1 . 3 . 26 . 18 Part Disruptions 2 | . . . . . . . 1 . . . . . . . 1 . Damage Taken 20215 | . 784 . 211 . 2018 258 703 1849 154 151 500 2487 1349 7266 47 2438 Core 3737 | . 141 . . . 145 35 266 211 . . . 255 224 987 . 1473 Absorbed by Shields 94 | . . . . . . . . . 18 76 . . . . . . Reduced by Siege Mode 844 | . . . . . . . . . . . . 48 32 764 . . Ignored by Resistances 201 | . . . . . 155 46 . . . . . . . . . . Regen/Repaired (Parts) 2593 | . . . . 451 662 . . . . . . . 1245 . . 235 Core Remaining (%) 57 | 100 . . . 43 . . 47 . . . . 53 80 . 24 . Volleys Fired 398 | . 73 2 5 . 82 . 2 28 38 6 . 26 47 84 2 3 Largest 3 | . 2 2 2 . 2 . 2 2 2 3 . 3 3 3 1 1 Hottest 386 | . 112 80 86 . 117 . 88 88 94 154 . 162 145 386 94 94 Shots Fired 755 | . 124 4 9 . 166 . 4 54 39 22 . 47 109 172 2 3 Gun 504 | . 99 4 . . 83 . . . 23 7 . 41 109 133 2 3 Cannon 246 | . 25 . 5 . 83 . 4 54 16 15 . 6 . 38 . . Launcher 5 | . . . 4 . . . . . . . . . . 1 . . Special . | . . . . . . . . . . . . . . . . . Kinetic 385 | . 17 . . . 131 . 4 54 16 15 . 34 79 35 . . Thermal 293 | . 70 4 . . 35 . . . . . . 13 30 136 2 3 Explosive 4 | . . . 4 . . . . . . . . . . . . . Electromagnetic 73 | . 37 . 5 . . . . . 23 7 . . . 1 . . Robot Hit Streak 30 | . 18 2 2 . 12 . 2 11 13 9 . 24 30 25 . 2 Robot Miss Streak 10 | . 6 1 . . 10 . 4 7 2 1 . 2 3 3 . 1 Penetration Max 1 | . . . . . . . . . . 1 . . 1 . . . Secondary Targets 5 | . . . . . . . . . . . . . 3 2 . . Max Gunslinging Chain 1 | . . . . . . . . . . . . . 1 1 . . Shots Hit Robots 581 | . 80 2 1 . 129 . 21 68 22 17 . 35 74 125 . 7 Core Hits 339 | . 26 1 10 . 130 . 8 43 8 5 . 12 32 61 . 3 Critical Kills 12 | . . . . . 1 . 3 . . . . 1 5 2 . . Critical Parts Destroyed 10 | . . . . . 1 . 4 . . . . 4 1 . . . Critical Strikes 43 | . . . . . 2 . 7 4 3 4 . 6 6 8 . 3 Burn 5 | . . . . . . . . . . . . . . 4 . 1 Meltdown 1 | . . . . . . . . . . . . . . 1 . . Destroy 12 | . . . . . . . . . . . . 5 6 1 . . Blast 8 | . . . . . . . . . 1 4 . 1 . 2 . . Corrupt 2 | . . . . . . . . . 2 . . . . . . . Smash 9 | . . . . . 2 . 7 . . . . . . . . . Sever 2 | . . . . . . . . . . . . . . . . 2 Impale 4 | . . . . . . . . 4 . . . . . . . . Melee Attacks 95 | . . . . . 7 . 40 35 . . . . . . . 13 Impact 47 | . . . . . 7 . 40 . . . . . . . . . Slashing 13 | . . . . . . . . . . . . . . . . 13 Piercing 35 | . . . . . . . . 35 . . . . . . . . Sneak Attacks 8 | . . . . . . . 2 6 . . . . . . . . Combat Hostiles 1 | . . . . . . . 1 . . . . . . . . . Follow-up Attacks . | . . . . . . . . . . . . . . . . . Damage Inflicted 16662 | . 1219 32 258 . 2983 . 1051 1600 765 601 . 1149 2781 4043 . 180 Guns 8980 | . 675 32 . . 1359 . . . 618 133 . 912 2781 2414 . 56 Cannons 4805 | . 433 . 37 . 1336 . 62 769 84 468 . 210 . 1406 . . Explosions 603 | . 111 . 221 . . . . . 55 . . . . 216 . . Melee 2199 | . . . . . 263 . 987 825 . . . . . . . 124 Ramming 75 | . . . . . 25 . 2 6 8 . . 27 . 7 . . Kinetic 7063 | . 124 . . . 2021 . 62 769 84 468 . 804 1898 833 . . Thermal 5528 | . 523 32 . . 674 . . . 55 . . 318 883 2987 . 56 Explosive 221 | . . . 221 . . . . . . . . . . . . . Electromagnetic 1576 | . 572 . 37 . . . . . 618 133 . . . 216 . . Impact 1250 | . . . . . 263 . 987 . . . . . . . . . Slashing 124 | . . . . . . . . . . . . . . . . 124 Piercing 825 | . . . . . . . . 825 . . . . . . . . Highest Corruption 36 | . . . . . 9 24 25 15 16 32 32 36 2 8 5 11 Average Corruption 12 | . . . . . 4 14 24 9 14 16 32 32 1 5 4 9 Corruption Purged 21 | . . . . . . . . . 16 . . . . 5 . . Corruption Blocked . | . . . . . . . . . . . . . . . . . Effects 249 | . . . . . 49 7 58 16 36 19 6 27 4 20 5 2 Message Errors 51 | . . . . . 13 . 13 3 7 3 . 7 2 2 1 . Matter Fused 64 | . . . . . 9 . 15 6 10 3 4 5 . 8 3 1 Heat Flow Errors 33 | . . . . . 6 3 3 1 10 3 . 3 1 2 . 1 Energy Discharges 31 | . . . . . 7 2 12 1 4 1 1 1 . 2 . . Parts Rejected 3 | . . . . . . . 1 . . . . 2 . . . . Parts Fused 5 | . . . . . 2 . . 1 1 . . 1 . . . . Data Loss (minor) 23 | . . . . . 5 1 5 1 . 1 . 4 1 4 1 . Data Loss (major) 8 | . . . . . 2 . 3 . 1 1 . 1 . . . . Misfires 9 | . . . . . 3 . . . . 4 . 1 . 1 . . Alerts 8 | . . . . . 1 . 2 1 1 3 . . . . . . Misdirections 7 | . . . . . . 1 4 . . . 1 1 . . . . Weapon Failures 7 | . . . . . 1 . . 2 2 . . 1 . 1 . . Overload Shots 2 | . . . . . . . . . . . . . . 2 . . Effects 1 | . . . . . . . . . . . . . . 1 . . Heat Surge 1 | . . . . . . . . . . . . . . 1 . . Overflow Damage 651 | . 15 . . . 120 . 437 37 25 . . . . 17 . . Projectiles 44 | . . . . . 5 . . . 25 . . . . 14 . . Explosions 18 | . 15 . . . . . . . . . . . . 3 . . Melee 589 | . . . . . 115 . 437 37 . . . . . . . . Knockbacks 66 | . . . . . 28 . 7 22 1 1 . 1 . 6 . . Impact 5 | . . . . . 1 . 4 . . . . . . . . . Kinetic 58 | . . . . . 26 . 3 22 1 1 . 1 . 4 . . Secondary 3 | . . . . . 1 . . . . . . . . 2 . . Self-Inflicted Damage 439 | . 36 . 19 . 237 . . . . . . 101 13 33 . . Shots 10 | . 1 . 1 . 3 . . . . . . 1 1 3 . . Rammed 5 | . . . . . . . 1 . 1 . . 2 . 1 . . Targets Rammed 8 | . . . . . 2 . 1 1 1 . . 2 . 1 . . Kicked 2 | . . . . . 2 . . . . . . . . . . . Crushed 1 | . . . . . . . . 1 . . . . . . . . Highest Temperature 846 | . 195 . 263 . 370 141 164 326 303 221 . 374 556 846 10 98 Average Temperature 135 | . 74 . 263 . 71 66 60 126 88 78 . 170 173 279 6 39 Received Heat Transfer 2678 | . 381 . 366 . 408 . 51 144 58 4 . 339 96 705 . 126 Effects 65 | . . . . . . . . 5 1 . . . 10 49 . . Shutdowns 10 | . . . . . . . . . . . . . 3 7 . . Energy Bleed 7 | . . . . . . . . . 1 . . . . 6 . . Interference 20 | . . . . . . . . 5 . . . . 3 12 . . Matter Decay 3 | . . . . . . . . . . . . . 1 2 . . Short Circuit 3 | . . . . . . . . . . . . . 1 2 . . Damage (minor) 7 | . . . . . . . . . . . . . 1 6 . . Damage (major) 12 | . . . . . . . . . . . . . . 12 . . Damage (core) 3 | . . . . . . . . . . . . . 1 2 . . Siege Activations 13 | . . . . . . . . . . . . 1 8 4 . . Total Turns 304 | . . . . . . . . . . . . 44 105 155 . . Longest Duration 66 | . . . . . . . . . . . . 44 21 66 . . Martial Activations . | . . . . . . . . . . . . . . . . . Shielding Activations . | . . . . . . . . . . . . . . . . . Robots Disrupted 2 | . . . . . . . . . 1 . . . . 1 . . Combat Hostiles 1 | . . . . . . . . . . . . . . 1 . . Robots Corrupted 9 | . 1 . . . . . 6 . 2 . . . . . . . Combat Hostiles 7 | . 1 . . . . . 4 . 2 . . . . . . . Parts Fried 13 | . 2 . . . . . 5 . 5 . . 1 . . . . Impact Corruptions 20 | . . . . . 4 . 15 . . . . . . 1 . . Robots Melted 2 | . . . . . . . . . . . . . 1 1 . . Combat Hostiles 2 | . . . . . . . . . . . . . 1 1 . . Parts Melted 16 | . 1 . . . 1 . . . . . . . 1 13 . . Heat Transferred 8273 | . 1025 75 . . 1425 . . . . . . 370 925 4305 . 148 Parts Sabotaged . | . . . . . . . . . . . . . . . . . Parts Stolen . | . . . . . . . . . . . . . . . . . Parts Stripped . | . . . . . . . . . . . . . . . . . Power Chain Reactions 2 | . 1 . . . . . . . 1 . . . . . . . Alert | -11 -10 -10 -10 -9 -6 -6 -6 -5 -5 -5 -5 -5 -4 -3 -3 -2 ------- Run | Yrd Mat Min Sub Scr Fac Was Fac Fac Ext Cet Arc Hub Fac Res Tes Res Maximum Alert Level 2 | . . . . . . . . . 1 1 2 1 2 1 . . Low Security (%) 92 | 100 100 100 . . 100 100 100 100 91 95 64 94 57 88 100 100 Level 1 6 | . . . . . . . . . 8 4 25 5 30 11 . . Level 2 1 | . . . . . . . . . . . 9 . 11 . . . Level 3 . | . . . . . . . . . . . . . . . . . Level 4 . | . . . . . . . . . . . . . . . . . Level 5 . | . . . . . . . . . . . . . . . . . High Security . | . . . . . . . . . . . . . . . . . Max Security . | . . . . . . . . . . . . . . . . . Peak Influence 481 | . 122 5 . . 157 39 140 58 233 215 481 359 460 236 101 172 Initial 236 | . . . . . . 39 . 35 4 123 54 152 175 236 101 6 Average 81 | . 29 . . . 82 13 57 13 44 139 160 99 181 161 17 32 Influence Increases 5827 | . 337 5 200 . 797 . 404 234 485 338 563 537 755 694 86 392 Destroy 0b10 Robot/C 2640 | . 200 . 80 . 460 . 200 140 240 160 280 100 360 380 . 40 Destroy 0b10 Robot/NC 210 | . 30 5 . . 55 . 10 30 20 10 . . 20 30 . . Destroy Leader 520 | . 64 . . . 140 . 64 52 44 . . 20 74 52 . 10 Allied During Kill 443 | . . . . . . . . . 60 127 256 . . . . . Successful Hack 192 | . 10 . . . 7 . . . 23 . . 14 28 57 41 12 Select Force Hacks 50 | . . . . . . . . . . . . . . 50 . . Disable Machine 435 | . . . . . 60 . 15 . 15 . 15 195 105 . 30 . Destroy Structure 497 | . 3 . . . 30 . 10 12 38 26 12 208 138 20 . . Partial Spotted 75 | . . . . . . . 15 . . . . . . 15 15 30 Lose Combat Pursuer 765 | . 30 . 120 . 45 . 90 . 45 15 . . 30 90 . 300 Influence Decreases 5683 | . 337 5 158 42 684 113 332 297 274 423 261 615 663 965 255 259 Entered New Map 1104 | . . . . 42 . 74 . 37 5 97 81 285 184 215 79 5 Time Decay 3473 | . 287 5 148 . 614 29 302 210 209 286 50 220 459 490 60 104 Lost Part 790 | . 50 . 10 . 70 10 30 50 . 20 10 110 20 260 . 150 Lost Ally 200 | . . . . . . . . . 60 20 120 . . . . . Purge Threat 116 | . . . . . . . . . . . . . . . 116 . Squads Dispatched 55 | . 4 . . . 11 . 6 5 1 . . 5 6 8 2 7 Investigation 14 | . 1 . . . 1 . 2 1 . . . 1 2 5 1 . Extermination 15 | . . . . . 4 . 3 1 . . . 1 3 . 1 2 Reinforcement 16 | . 3 . . . 3 . 1 . 1 . . . . 3 . 5 Assault 1 | . . . . . . . . . . . . . 1 . . . Garrison 9 | . . . . . 3 . . 3 . . . 3 . . . . Intercept . | . . . . . . . . . . . . . . . . . Searches Triggered . | . . . . . . . . . . . . . . . . . Construction Impeded 1 | . . . . . . . . . . . . . . 1 . . Haulers Reinforced 2 | . . . . . 2 . . . . . . . . . . . Active Scanning Responses . | . . . . . . . . . . . . . . . . . Cargo Convoy Interrupts . | . . . . . . . . . . . . . . . . . Stealth | -11 -10 -10 -10 -9 -6 -6 -6 -5 -5 -5 -5 -5 -4 -3 -3 -2 --------- Run | Yrd Mat Min Sub Scr Fac Was Fac Fac Ext Cet Arc Hub Fac Res Tes Res Distress Signals 16 | . . . . . 1 . 1 . . 2 . 1 2 4 . 5 Communications Jammed 12 | . . . . . . . . . . . . . 12 . . . Distress Signals 12 | . . . . . . . . . . . . . 12 . . . Times Spotted 259 | . 26 . 10 . 30 6 25 10 14 7 6 11 24 41 4 45 Peak Tracking Total 20 | . 5 . 5 . 5 6 8 2 4 5 7 7 5 9 5 20 Tactical Retreats 23 | . 2 . 1 . 3 . 4 . 3 1 . . 2 2 . 5 Traps | -11 -10 -10 -10 -9 -6 -6 -6 -5 -5 -5 -5 -5 -4 -3 -3 -2 ------- Run | Yrd Mat Min Sub Scr Fac Was Fac Fac Ext Cet Arc Hub Fac Res Tes Res Traps Triggered 18 | . 4 . . . 4 . . 1 . . . 5 . 1 . 3 Indirectly 4 | . . . . . . . . . . . . 4 . . . . Trap Hack Attempts . | . . . . . . . . . . . . . . . . . Triggered . | . . . . . . . . . . . . . . . . . Disarmed . | . . . . . . . . . . . . . . . . . Reprogrammed 2 | . . . . . . . . . 2 . . . . . . . Reused . | . . . . . . . . . . . . . . . . . Traps Extracted . | . . . . . . . . . . . . . . . . . Installed . | . . . . . . . . . . . . . . . . . Triggered . | . . . . . . . . . . . . . . . . . Machines | -11 -10 -10 -10 -9 -6 -6 -6 -5 -5 -5 -5 -5 -4 -3 -3 -2 ---------- Run | Yrd Mat Min Sub Scr Fac Was Fac Fac Ext Cet Arc Hub Fac Res Tes Res Machines Disabled 32 | . . . 2 . 4 . 1 . 1 1 1 13 7 . 2 . Max in Single Turn 11 | . . . 2 . 4 . 1 . . . . 11 5 . 1 . Garrison Access 4 | . . . . . . . . 1 . . . . . 3 . . Network Hub 2 | . . . . . . . . . . . . 2 . . . . Machines Repaired . | . . . . . . . . . . . . . . . . . Machines Dismantled . | . . . . . . . . . . . . . . . . . Machines Sabotaged . | . . . . . . . . . . . . . . . . . Overloaded Fab Kills 2 | . . . . . . . . . . . . . . 2 . . Hacking | -11 -10 -10 -10 -9 -6 -6 -6 -5 -5 -5 -5 -5 -4 -3 -3 -2 --------- Run | Yrd Mat Min Sub Scr Fac Was Fac Fac Ext Cet Arc Hub Fac Res Tes Res Machines Accessed 63 | . 4 . . 5 3 . 9 3 11 . 1 5 4 8 5 5 Terminals 33 | . 4 . . . 1 . 6 . 11 . . 4 . 2 3 2 Fabricators 6 | . . . . . . . 1 1 . . . . . 3 1 . Repair Stations 6 | . . . . . 1 . 1 . . . . . 2 . . 2 Recycling Units 7 | . . . . . 1 . 1 1 . . . . 2 2 . . Scanalyzers 2 | . . . . . . . . . . . . . . . 1 1 Garrison Access 3 | . . . . . . . . 1 . . . 1 . 1 . . Total Hacks 211 | . 9 . . 32 17 . 17 5 25 . 25 9 8 32 24 8 Successful 134 | . 2 . . 32 16 . . 1 12 . 25 3 6 17 13 7 Failed 77 | . 7 . . . 1 . 17 4 13 . . 6 2 15 11 1 Catastrophic 22 | . 3 . . . . . 9 1 . . . 3 . 4 2 . Database Lockouts . | . . . . . . . . . . . . . . . . . Manual 57 | . 4 . . . 2 . 9 2 6 1 . 1 3 27 1 1 Terminals 97 | . 9 . . . 4 . 12 . 25 . . 6 . 21 18 2 Fabricators 12 | . . . . . . . 1 1 . . . . . 7 3 . Repair Stations 23 | . . . . . 12 . 2 . . . . . 5 . . 4 Recycling Units 11 | . . . . . 1 . 2 2 . . . . 3 3 . . Scanalyzers 5 | . . . . . . . . . . . . . . . 3 2 Garrison Access 6 | . . . . . . . . 2 . . . 3 . 1 . . Terminal Hacks 91 | . 1 . . 32 3 . . . 10 . 25 3 . 7 8 2 Record 53 | . . . . 28 . . . . . . 25 . . . . . Robot Analysis 7 | . 1 . . 4 . . . . . . . . . . 2 . Prototype ID Bank 1 | . . . . . . . . . 1 . . . . . . . Open Door 6 | . . . . . . . . . 6 . . . . . . . Level Access Points 1 | . . . . . . . . . . . . . . 1 . . Branch Access Points 4 | . . . . . 1 . . . . . . . . 1 1 1 Emergency Access Points 2 | . . . . . 1 . . . . . . 1 . . . . Terminal Index 2 | . . . . . . . . . . . . . . 1 1 . Fabricator Index 1 | . . . . . . . . . . . . . . 1 . . Recycling Unit Index 2 | . . . . . . . . . . . . 1 . 1 . . Garrison Index 1 | . . . . . . . . . . . . . . 1 . . Alert Level 1 | . . . . . . . . . 1 . . . . . . . Unreport Threat 2 | . . . . . . . . . 1 . . . . . 1 . Reprogram Traps 1 | . . . . . . . . . 1 . . . . . . . Recall Investigation 1 | . . . . . . . . . . . . . . . 1 . Zone Layout 6 | . . . . . 1 . . . . . . 1 . 1 2 1 Fabricator Hacks 2 | . . . . . . . . . . . . . . 1 1 . Build 2 | . . . . . . . . . . . . . . 1 1 . Repair Station Hacks 20 | . . . . . 12 . . . . . . . 4 . . 4 Scan Component 9 | . . . . . 6 . . . . . . . 2 . . 1 Repair 9 | . . . . . 6 . . . . . . . 2 . . 1 Refit 2 | . . . . . . . . . . . . . . . . 2 Recycling Unit Hacks . | . . . . . . . . . . . . . . . . . Scanalyzer 4 | . . . . . . . . . . . . . . . 3 1 Retrieve Study 4 | . . . . . . . . . . . . . . . 3 1 Garrison Access Hacks 2 | . . . . . . . . 1 . . . . . 1 . . Seal Access 2 | . . . . . . . . 1 . . . . . 1 . . Unauthorized Hacks 15 | . 1 . . . 1 . . . 2 . . . 2 8 1 . Terminals 7 | . 1 . . . . . . . 2 . . . . 4 . . Track 2 | . . . . . . . . . 1 . . . . 1 . . Botnet 1 | . . . . . . . . . . . . . . 1 . . Disrupt 1 | . . . . . . . . . . . . . . 1 . . Operators 3 | . 1 . . . . . . . 1 . . . . 1 . . Fabricators 3 | . . . . . . . . . . . . . . 2 1 . Liberate 2 | . . . . . . . . . . . . . . 1 1 . Overload 1 | . . . . . . . . . . . . . . 1 . . Repair Stations . | . . . . . . . . . . . . . . . . . Recycling Units 5 | . . . . . 1 . . . . . . . 2 2 . . Fedlink 5 | . . . . . 1 . . . . . . . 2 2 . . Scanalyzers . | . . . . . . . . . . . . . . . . . Garrison Access . | . . . . . . . . . . . . . . . . . Data Cores Recovered . | . . . . . . . . . . . . . . . . . Used . | . . . . . . . . . . . . . . . . . Hacking Detections 30 | . 3 . . . 1 . 9 3 5 . . 3 . 3 3 . Full Trace Events 6 | . 1 . . . . . 2 1 . . . 1 . . 1 . Feedback Events 1 | . . . . . . . 1 . . . . . . . . . Corruption 1 | . . . . . . . 1 . . . . . . . . . Feedback Blocked . | . . . . . . . . . . . . . . . . . Robot Schematics Acquired . | . . . . . . . . . . . . . . . . . Robots Built . | . . . . . . . . . . . . . . . . . Authchips . | . . . . . . . . . . . . . . . . . Time . | . . . . . . . . . . . . . . . . . Total Robot Build Rating . | . . . . . . . . . . . . . . . . . Part Schematics Acquired . | . . . . . . . . . . . . . . . . . Parts Built 2 | . . . . . . . . . . . . . . 2 . . Authchips . | . . . . . . . . . . . . . . . . . Time 120 | . . . . . . . . . . . . . . 46 74 . Total Part Build Rating 18 | . . . . . . . . . . . . . . 18 . . Part Studies Acquired 4 | . . . . . . . . . . . . . . . 3 1 Parts Repaired 9 | . . . . . 6 . . . . . . . 2 . . 1 Time 404 | . . . . . 246 . . . . . . . 108 . . 50 Parts Recycled . | . . . . . . . . . . . . . . . . . Recycled Matter . | . . . . . . . . . . . . . . . . . Retrieved Matter . | . . . . . . . . . . . . . . . . . Retrieved Components . | . . . . . . . . . . . . . . . . . Parts Scanalyzed . | . . . . . . . . . . . . . . . . . Part Schematics Acquired . | . . . . . . . . . . . . . . . . . Parts Damaged . | . . . . . . . . . . . . . . . . . Bothacking | -11 -10 -10 -10 -9 -6 -6 -6 -5 -5 -5 -5 -5 -4 -3 -3 -2 ------------ Run | Yrd Mat Min Sub Scr Fac Was Fac Fac Ext Cet Arc Hub Fac Res Tes Res Used RIF Installer . | . . . . . . . . . . . . . . . . . Robots Hacked . | . . . . . . . . . . . . . . . . . Non-combat . | . . . . . . . . . . . . . . . . . Combat . | . . . . . . . . . . . . . . . . . Robot Hacks Applied . | . . . . . . . . . . . . . . . . . Relay Couplers Released 3 | . . . . . . . . . . . . . . 3 . . Machine Destruction 3 | . . . . . . . . . . . . . . 3 . . Fabnet Peak Effective % . | . . . . . . . . . . . . . . . . . Robots Rewired 3 | . . . . . . . . . 3 . . . . . . . Allies Hacked . | . . . . . . . . . . . . . . . . . Hacks Repelled . | . . . . . . . . . . . . . . . . . Allies | -11 -10 -10 -10 -9 -6 -6 -6 -5 -5 -5 -5 -5 -4 -3 -3 -2 -------- Run | Yrd Mat Min Sub Scr Fac Was Fac Fac Ext Cet Arc Hub Fac Res Tes Res Total Allies 16 | . . . . . . . . . 11 5 . . . . . . Largest Group 10 | . . . . . . . . . 5 10 9 . . . . . Highest-Rated Group 749 | . . . . . . . . . 269 749 653 . . . . . Highest-Rated Ally 159 | . . . . . . . . . 159 159 159 . . . . . Total Orders 2 | . . . . . . . . . 1 1 . . . . . . GUARD 1 | . . . . . . . . . . 1 . . . . . . COLLECT 1 | . . . . . . . . . 1 . . . . . . . Ally Attacks 161 | . . . . . . . . . 55 50 56 . . . . . Total Damage 4643 | . . . . . . . . . 1070 1391 2182 . . . . . Kills 33 | . . . . . . . . . 10 9 14 . . . . . Allies Corrupted . | . . . . . . . . . . . . . . . . . Allies Melted . | . . . . . . . . . . . . . . . . . Intel | -11 -10 -10 -10 -9 -6 -6 -6 -5 -5 -5 -5 -5 -4 -3 -3 -2 ------- Run | Yrd Mat Min Sub Scr Fac Was Fac Fac Ext Cet Arc Hub Fac Res Tes Res Active Infowar (turns) 3815 | . . . . . 44 . 947 816 . . . . 1166 213 144 485 Optics 2003 | . . . . . . . 480 681 . . . . . 213 144 485 Sensors 1059 | . . . . . 44 . 237 434 . . . . . . . 344 IFF 260 | . . . . . . . 260 . . . . . . . . . Traps 31 | . . . . . . . 31 . . . . . . . . . Jamming 1166 | . . . . . . . . . . . . . 1166 . . . Robot Analysis Total 7 | . 1 . . 4 . . . . . . . . . . 2 . Derelict Logs Recovered 1 | . . 1 . . . . . . . . . . . . . . Drone Launches . | . . . . . . . . . . . . . . . . . Drone Recoveries . | . . . . . . . . . . . . . . . . . Exploration | -11 -10 -10 -10 -9 -6 -6 -6 -5 -5 -5 -5 -5 -4 -3 -3 -2 ------------- Run | Yrd Mat Min Sub Scr Fac Was Fac Fac Ext Cet Arc Hub Fac Res Tes Res Turns Passed 15558 | 66 1226 316 509 2785 2334 120 1155 985 1526 639 102 499 1340 1282 144 530 Spaces Moved 8042 | 36 487 137 231 1414 789 92 1147 366 548 211 57 245 561 701 335 685 Core 278 | 1 1 . . . . 43 105 . . . . . . 61 . 67 Treads 2892 | 35 239 . . . . . 152 366 548 211 57 245 561 478 . . Legs 2868 | . 247 137 231 1414 789 49 . . . . . . . . . 1 Wheels . | . . . . . . . . . . . . . . . . . Hover 890 | . . . . . . . 890 . . . . . . . . . Flight 1114 | . . . . . . . . . . . . . . 162 335 617 Fastest Speed 27 | 50 160 190 190 190 193 50 50 160 160 160 160 160 160 31 32 27 Average Speed 139 | 156 176 190 190 191 201 123 69 160 160 171 160 160 160 121 34 34 Slowest Speed 350 | 160 350 190 190 260 265 260 200 160 160 240 160 160 160 160 35 120 Overloaded Moves . | . . . . . . . . . . . . . . . . . Propulsion Burnouts . | . . . . . . . . . . . . . . . . . Robots Hopped 23 | . . . . . . . . . . . . . . . 4 19 Potential Cave-ins 8 | . . . . . . . . . 8 . . . . . . . Cave-ins Triggered 1 | . . . . . . . . 1 . . . . . . . . Exploration Rate (%) 39 | 3 64 51 18 84 11 79 31 11 63 56 76 26 13 25 37 23 Regions Visited 16 Branch Regions 8 Pre-discovered Areas 2 | . . . . 1 . . . . . . . . 1 . . . Known Exits Taken 3 | . . . . . . . . . . . . . 1 1 1 . Unknown Exits Taken 11 | 1 1 1 1 1 . . 1 1 1 1 1 1 . . . . Scrap Searched 7 | . . 1 . 6 . . . . . . . . . . . . Spaces Dug 38 | . . . . . . . 10 6 5 . . . 8 9 . . Terrain Destroyed 364 | . 2 . 4 . 28 . 10 6 15 5 . 159 119 16 . . Melee 16 | . . . . . . . 10 6 . . . . . . . . Projectile 89 | . . . . . . . . . 15 5 . 9 44 16 . . AOE 259 | . 2 . 4 . 28 . . . . . . 150 75 . . . Terrain Rammed . | . . . . . . . . . . . . . . . . . Walls Destroyed . | . . . . . . . . . . . . . . . . . Machines Disabled . | . . . . . . . . . . . . . . . . . Actions | -11 -10 -10 -10 -9 -6 -6 -6 -5 -5 -5 -5 -5 -4 -3 -3 -2 --------- Run | Yrd Mat Min Sub Scr Fac Was Fac Fac Ext Cet Arc Hub Fac Res Tes Res Total 11451 | 43 728 189 294 1496 1348 99 1422 630 1154 486 68 308 920 979 356 931 Wait 2403 | . 131 50 54 57 405 . 165 172 524 217 12 12 283 103 7 211 Move 7986 | 35 486 136 230 1413 789 91 1146 365 547 210 56 245 560 700 326 651 Hop 19 | . . . . . . . . . . . . . . . 4 15 Pick Up 122 | . 13 1 1 7 18 3 15 4 12 16 . 2 10 13 2 5 Fast Attach 160 | 7 18 . . 5 16 . 23 9 2 7 . 8 7 32 7 19 Attach 66 | . 1 . 2 . 10 . 9 7 4 2 . 9 3 17 . 2 Detach 23 | 1 . . . . 3 . 3 1 . 1 . 3 2 8 . 1 Swap 25 | . . . . 3 2 . 1 5 7 3 . . 2 2 . . Drop 133 | . 6 . 2 11 14 5 17 3 6 24 . 2 6 18 8 11 Fire 398 | . 73 2 5 . 82 . 2 28 38 6 . 26 47 84 2 3 Melee 95 | . . . . . 7 . 40 35 . . . . . . . 13 Ram . | . . . . . . . . . . . . . . . . . Kick 2 | . . . . . 2 . . . . . . . . . . . Crush 5 | . . . . . . . 1 1 1 . . 1 . 1 . . Escape Stasis 1 | . . . . . . . . . 1 . . . . . . . Rewire 13 | . . . . . . . . . 12 . . . . 1 . . Trap . | . . . . . . . . . . . . . . . . . Miscellaneous . | . . . . . . . . . . . . . . . . . Route ------- -11/Scrapyard -10/Materials (discovered 4 exits: [*Mat x2] / [*Min x2]) -10/Mines (discovered 2 exits: [*Mat] / [*Sub]) -10/Subcaves (discovered 2 exits: [*Rec] / *Scr) -9/Scraptown (discovered 2 exits: *Fac x2) -6/Factory (discovered 2 exits: *Low x2) -6/Waste -6/Factory -5/Factory -5/Extension (discovered 2 exits: *Fac / *Cet) -5/Cetus (discovered 2 exits: *Fac / *Arc) -5/Archives -5/Hub_04(d) -4/Factory -3/Research (discovered 6 exits: *Res x3 / Arm / *Tes x2) -3/Testing -2/Research (discovered 4 exits: *Acc x2 / *Qua x2) History --------- Turn | Location | Event 40 | -11/Scrapyard | Discovered new exit (range 15) 67 | -11/Scrapyard | Entered Materials 192 | -10/Materials | Discovered new exit (range 8) 314 | -10/Materials | Build established: Mutant 520 | -10/Materials | Discovered new exit (range 9) 597 | -10/Materials | Core integrity fell below 50% 635 | -10/Materials | Lost 5 parts (1p2n2w) 912 | -10/Materials | Build established: Scavenger-Mutant 966 | -10/Materials | Discovered new exit (range 7) 1214 | -10/Materials | Discovered new exit (range 8) 1293 | -10/Materials | Entered Mines 1380 | -10/Mines | Learned Materials stockpile data 1394 | -10/Mines | Discovered new exit (range 6) 1563 | -10/Mines | Discovered new exit (range 4) 1609 | -10/Mines | Entered Subcaves 1610 | -10/Subcaves | Approached by a straggling Scientist 1801 | -10/Subcaves | Discovered new exit (range 14) 2045 | -10/Subcaves | Scientist uncovered a shortcut to Scraptown 2118 | -10/Subcaves | Entered Scraptown 2432 | -9/Scraptown | Build established: Mutant 2553 | -9/Scraptown | Discovered new exit (range 3) 2828 | -9/Scraptown | Visited CR-KLE's Repair Center 2881 | -9/Scraptown | Visited Cyclists 2946 | -9/Scraptown | Learned location of Extension (-5) 3001 | -9/Scraptown | Visited SPCMW 3064 | -9/Scraptown | Visited UFD Registry 3064 | -9/Scraptown | Registered with UFD as "Fibercore" 3127 | -9/Scraptown | Visited Derelict Rescue Squad 3143 | -9/Scraptown | Found DRS Beacon 3204 | -9/Scraptown | Visited DA-N13 Charitable Foundation 3216 | -9/Scraptown | Found DCF Scrap (27 items) 3653 | -9/Scraptown | Visited Science Testing Area 3693 | -9/Scraptown | Visited Analyses Database 3736 | -9/Scraptown | Visited Junk Repository 3771 | -9/Scraptown | Visited Scrap Suit Storage 3797 | -9/Scraptown | Found Scrap Suit 3805 | -9/Scraptown | Found Scrap Suit 3808 | -9/Scraptown | Found Scrap Suit 3877 | -9/Scraptown | Discovered new exit (range 5) 4050 | -9/Scraptown | Visited Chapter 10 4136 | -9/Scraptown | Visited Infowarlord's Domain 4155 | -9/Scraptown | Found Exp. Sensor Array 4201 | -9/Scraptown | Visited Junk Repository 4375 | -9/Scraptown | Visited The Evicted 4451 | -9/Scraptown | CR-KLE repaired 7 parts 4712 | -9/Scraptown | Met Optimus 4712 | -9/Scraptown | Accepted into 0bPrime 4903 | -9/Scraptown | Entered Factory 4903 | -6/Factory | Evolved 8 slots: Power x1, Propulsion x2, Utility x5 5508 | -6/Factory | Build established: Scavenger-Mutant 5810 | -6/Factory | Loaded intel: 8 recycling unit locations 6175 | -6/Factory | Discovered new exit (range 18) 6175 | -6/Factory | Identified exit to Lower Caves 6244 | -6/Factory | Garrison activated, responded to threat 6511 | -6/Factory | Repaired Flak Cannon 6551 | -6/Factory | Repaired Reactive Plating 6590 | -6/Factory | Repaired Titanium Leg 6630 | -6/Factory | Repaired Carbon-fiber Leg 6675 | -6/Factory | Repaired Gatling Laser 6727 | -6/Factory | Repaired Lgt. Angular Momentum Engine 7237 | -6/Factory | Sucked down chute 7237 | -6/Factory | Entered Waste 7252 | -6/Waste | EMP discharged 7252 | -6/Waste | System corruption reached 10% 7271 | -6/Waste | Spotted C-40 Crusher 7274 | -6/Waste | Spotted C-40 Crusher 7278 | -6/Waste | Spotted C-40 Crusher 7283 | -6/Waste | Spotted C-40 Crusher 7287 | -6/Waste | Spotted C-40 Crusher 7289 | -6/Waste | Crushed by Compactor (1 part destroyed) 7292 | -6/Waste | Crushed by Compactor (0 parts destroyed, 2 dropped) 7320 | -6/Waste | Crushed by Compactor (1 part destroyed, 1 dropped) 7321 | -6/Waste | Spotted C-40 Crusher 7326 | -6/Waste | Crushed by Compactor (0 parts destroyed, 1 dropped) 7332 | -6/Waste | Crushed by Compactor (0 parts destroyed, 1 dropped) 7337 | -6/Waste | Crushed by Compactor (1 part destroyed, 2 dropped) 7349 | -6/Waste | Discovered new exit (range 16) 7352 | -6/Waste | EMP discharged 7357 | -6/Waste | Entered Factory 7656 | -6/Factory | Build established: Mutant 8201 | -6/Factory | Core integrity fell below 50% 8450 | -6/Factory | Discovered new exit (range 16) 8512 | -6/Factory | Entered another Factory area 8512 | -5/Factory | Evolved 2 slots: Utility x1, Weapon x1 9075 | -5/Factory | Garrison activated, responded to threat 9249 | -5/Factory | Crushed by falling debris 9249 | -5/Factory | System corruption reached 10% 9292 | -5/Factory | Lost 5 parts (2p1n2u) 9359 | -5/Factory | Lost 3 parts (1n2u) 9422 | -5/Factory | Discovered new exit (range 16) 9497 | -5/Factory | Entered Extension 9566 | -5/Extension | Rescued a captive Derelict 9568 | -5/Extension | Rescued a captive Derelict 9740 | -5/Extension | Build established: Hacker-Gunner 10031 | -5/Extension | Lost 3 allies 10456 | -5/Extension | Rescued a captive Derelict 10614 | -5/Extension | Rescued A7 10671 | -5/Extension | Rescued a captive Derelict 10691 | -5/Extension | Rescued a captive Derelict 10692 | -5/Extension | Rescued a captive Derelict 10885 | -5/Extension | Rescued a captive Derelict 10885 | -5/Extension | Rescued a captive Derelict 10984 | -5/Extension | Discovered new exit (range 10) 10986 | -5/Extension | Discovered new exit (range 6) 11023 | -5/Extension | Entered Cetus 11023 | -5/Cetus | Accompanied by 5 allies (A7) 11028 | -5/Cetus | Acquired a Cetus Manufacturing Module code from A7 11077 | -5/Cetus | Spotted Cetus Guard 11077 | -5/Cetus | Spotted Cetus Guard 11081 | -5/Cetus | Spotted Cetus Guard 11082 | -5/Cetus | Destroyed Cetus Guard 11088 | -5/Cetus | Spotted Cetus Guard 11090 | -5/Cetus | Allies destroyed Cetus Guard 11098 | -5/Cetus | Allies destroyed Cetus Guard 11103 | -5/Cetus | Allies destroyed Cetus Guard 11260 | -5/Cetus | Started Cetus Manufacturing Module 11279 | -5/Cetus | Discovered new exit (range 16) 11285 | -5/Cetus | Manufactured an Enhanced Grunt 11310 | -5/Cetus | Manufactured an Enhanced Grunt 11335 | -5/Cetus | Manufactured an Enhanced Grunt 11360 | -5/Cetus | Manufactured an Enhanced Grunt 11385 | -5/Cetus | Manufactured an Enhanced Grunt 11425 | -5/Cetus | Spotted Cetus Guard 11426 | -5/Cetus | Spotted Cetus Guard 11502 | -5/Cetus | Discovered new exit (range 15) 11514 | -5/Cetus | Met Revision 17 11543 | -5/Cetus | System corruption reached 30% 11662 | -5/Cetus | Entered Archives 11662 | -5/Archives | Accompanied by 9 allies (A7) 11690 | -5/Archives | Met Zhirov 11696 | -5/Archives | Reinforcements dispatched to Archives 11721 | -5/Archives | Read partially decrypted archive contents 11728 | -5/Archives | Discovered new exit (range 16) 11741 | -5/Archives | Reinforcements dispatched to Archives 11743 | -5/Archives | Zhirov warped through subspace 11761 | -5/Archives | Zhirov detonated Archives 11764 | -5/Archives | Entered Hub_04(d) 11792 | -5/Hub_04(d) | Lost 8 allies 11823 | -5/Hub_04(d) | Build established: Scavenger-Tank 11848 | -5/Hub_04(d) | Garrison activated, responded to threat 11899 | -5/Hub_04(d) | Lost 3 parts (2u1w) 11899 | -5/Hub_04(d) | Spotted B-75 Beast 11944 | -5/Hub_04(d) | Network Hub disabled 11993 | -5/Hub_04(d) | Destroyed B-75 Beast 12021 | -5/Hub_04(d) | Lost 8 parts (2p4u2w) 12154 | -5/Hub_04(d) | Discovered new exit (range 7) 12248 | -5/Hub_04(d) | Network Hub disabled 12263 | -5/Hub_04(d) | Entered Factory 12263 | -4/Factory | Evolved 2 slots: Utility x2 12597 | -4/Factory | Repaired Centrium Heavy Treads 12661 | -4/Factory | Repaired Centrium Heavy Treads 13035 | -4/Factory | Discovered new exit (range 15) 13121 | -4/Factory | Identified exit to Research 13428 | -4/Factory | Loaded intel: 8 recycling unit locations 13428 | -4/Factory | Learned location of Protoforge (-2) 13513 | -4/Factory | First assault squad dispatched 13603 | -4/Factory | Entered Research 13603 | -3/Research | Evolved 2 slots: Utility x2 13709 | -3/Research | Fabricated Enh. Hardcell Cannon (x2) 13803 | -3/Research | Revision forces began assault on 0b10 13845 | -3/Research | Met up with Revision 17++ 13880 | -3/Research | Identified exit to Armory 13880 | -3/Research | Identified exit to Testing 13880 | -3/Research | Identified exit to Research 13918 | -3/Research | Spotted B-86 Titan 13948 | -3/Research | Destroyed B-86 Titan 14003 | -3/Research | Loaded intel: 5 recycling unit locations 14160 | -3/Research | Lost 8 parts (2p4u2w) 14239 | -3/Research | Lost 7 parts (1p2n2u2w) 14303 | -3/Research | Research terminal network offline 14554 | -3/Research | Found Gamma Bomb Array 14611 | -3/Research | Build established: Hacker-Tank 14702 | -3/Research | Spotted Executioner 14704 | -3/Research | Spotted Striker 14728 | -3/Research | Core integrity fell below 50% 14784 | -3/Research | Lost 9 parts (1p2n5u1w) 14829 | -3/Research | Spotted Striker 14885 | -3/Research | Entered Testing 14921 | -3/Testing | Found Prototype Energy Cannon 14921 | -3/Testing | Identified Imp. Potential Cannon 14924 | -3/Testing | Found Prototype Energy Cannon 14924 | -3/Testing | Identified Potential Cannon 14970 | -3/Testing | Found Prototype Device 14970 | -3/Testing | Identified Exp. Hardlight Generator 14998 | -3/Testing | Discovered exit to Research (range 18) 15029 | -3/Testing | Entered Research 15029 | -2/Research | Evolved 2 slots: Utility x2 15154 | -2/Research | Repaired Lyr. Medium Armor Plating 15354 | -2/Research | Discovered new exit (range 13) 15355 | -2/Research | Spotted B-90 Cyclops 15376 | -2/Research | Identified exit to Access 15377 | -2/Research | Spotted B-90 Cyclops 15380 | -2/Research | Identified exit to Quarantine 15403 | -2/Research | Build established: Wizard-Scout 15456 | -2/Research | Lost 4 parts (1p1n2u) 15511 | -2/Research | Discovered exit to Access (range 14) 15530 | -2/Research | Core integrity fell below 50% 15531 | -2/Research | System corruption reached 10% 15549 | -2/Research | Core integrity fell below 20% 15559 | -2/Research | Destroyed by Y-72 Warden with Railgun Last Messages --------------- 15529_ Triggered Gamma Bomb Trap. 15529_ A bubble of electromagnetic force engulfs the area. 15529_ Adv. System Shield severed. 15530_ P-80 Master resets R-10 Processor, system corruption cleaned. 15534_ Slug penetrates Wall. 15534_ Penetrated by Slug. 15535_ Imp. Hacking Suite destroyed. 15539_ System corrupted: Heat flow error (+144). 15541_ ALERT: Suspicious intruders detected, dispatching Cutter reinforcements to area. 15545_ Slug penetrates Door. 15545_ Penetrated by Slug. 15546_ Xenon Bombardment Thruster+ destroyed. 15546_ Knocked back. 15548_ System Shield severed. 15548_ Knocked back. 15553_ Penetrated by Slug. 15556_ System corrupted: Matter fused (-7). Map ----- +----------------------------------------------------+ | ???# ???????????????? #????????????????????? | | #???# ???????????????? #????????????????????? | | #???# ??????????????? #????????????????????? | | #???? =????????????### ###??????????????????? | | #?????? ???????????# #??????????????????? | | #########"############ #??????????????????? | | % #??????????????????? | | % % +??????????????????? | | #??????????????????? | | ########### #??????????????????? | | # #??# #??????????????????? | | + #??##H ##+#+#??????????????? | | ######### # #???# ###????????????? | | #???##### #???# A #????????????? | | #???????# #???# ####?????????? | | ! #???????# ! #???# #?????????? | | #???????########???# #?????????? | | #####??????????????????# #?????????? | | ???????????????????????## ####+##### ??????????? | | ????????????????????????# #????????????????????? | | ????????????????????????# #????????????????????? | | ????????????????????????# #????????????????????? | | ??????????????????????### ###??????????????????? | | ????????>?????????????# c #??????????????????? | | ??????????????????????# #??????????????????? | | ??????????????????????# @Y #??????????????????? | | ??????????????????????# > +??????????????????? | | ??????????????????????# #??????????????????? | | ??????????????????????# #??????????????????? | | ??????????????????????# #??????????????????? | | ??????????????????????####+####??????????????????? | | ?????????????????????????????????????????????????? | | ?????????????????????????????????????????????????? | | ?????????????????????????????????????????????????? | | ?????????????????????????????????????????????????? | | ?????????????????????????????????????????????????? | | ?????????????????????????????????????????????????? | | ?????????????????????????????????????????????????? | | ?????????????????????????????????????????????????? | | ?????????????????????????????????????????????????? | | ?????????????????????????????????????????????????? | | ?????????????????????????????????????????????????? | | ?????????????????????????????????????????????????? | | ?????????????????????????????????????????????????? | | ?????????????????????????????????????????????????? | | ?????????????????????????????????????????????????? | | ?????????????????????????????????????????????????? | | ?????????????????????????????????????????????????? | | ?????????????????????????????????????????????????? | | ?????????????????????????????????????????????????? | +----------------------------------------------------+ Best States ------------- Heat Dissipation 84 Energy Generation 45 Energy Capacity 600 Matter Stores 300 Matter Capacity 300 Sight Range 22 Robot Scan Range 20 Terrain Scan Density 10 Jamming Range 14 Power Amplification 20 EM Shielding 3 Corruption Containment 12 Armor Coverage 2100 Resistance: KI 20 Resistance: EM 25 Evasion (%) 75 Targeting Accuracy 10 Core Analysis 6 Recoil Reduction 4 Energy Filtering 50 Kinecelleration 40 Offensive Hacking 44 Defensive Hacking 36 Item Schematics ----------------- None Robot Schematics ------------------ None Fabricated ------------ Enh. Hardcell Cannon | x2 | -3/Research | Preloaded Repaired ---------- Flak Cannon | 1% | -6/Factory Reactive Plating | 10% | -6/Factory Titanium Leg | 1% | -6/Factory Carbon-fiber Leg | 30% | -6/Factory Gatling Laser | 38% | -6/Factory Lgt. Angular Momentum Engine | 51% | -6/Factory Centrium Heavy Treads | 10% | -4/Factory Centrium Heavy Treads | 33% | -4/Factory Lyr. Medium Armor Plating | 28% | -2/Research Studied --------- Impulse Thruster Array | -3/Testing | Hacked Xenon Bombardment Thruster | -3/Testing | Hacked Mic. Fission Core | -3/Testing | Hacked Quantum Rifle | -2/Research | Hacked Alien Tech Used ----------------- None Achievements -------------- All Kinds Of Bad News Link The Feds Nice Directions, Buddy Challenges ------------ None Game ------ Seed DirectedExplosiveRipteeth Manual? 0 Play Time 02:11:43 Cumulative 474.3 hours Start 2025.10.23 @ 12:20:44 End 2025.10.23 @ 15:55:40 Sessions 1 Manual Loads 0 Difficulty Rogue Special Mode None Game No. 802 Rogue 647 Adventurer 148 Explorer 7 Win Type - Total 23 Types 18/1/3/1/0/0/0/0/0/0 Lore% 64 Gallery% 75 Achievement% 49 Wizard Run 0 Options --------- Layout 1 ASCII 0 Keyboard 0 Movement Numpad Keybinds 0 Fullscreen 2 Font 24/Smallcaps Map View 50x35 Zoom Use 0% Tactical HUD 1 Map Filters NONE Filters NONE Steam 1 RUN: f20c7577-3884-4900-a543-2f39a7844402